[Event "Early-Titled-Tuesday-Blitz-May-07-2024"]
[Site "Chess.com"]
[Date "2024.05.07"]
[Round "1"]
[White "JosefineHeinemann"]
[Black "Hikaru"]
[Result "0-1"]
[WhiteElo "2543"]
[BlackElo "3233"]
[TimeControl "180+1"]
[EndTime "8:05:50 PDT"]
[Termination "Hikaru won by resignation"]

1. e4 {[%clk 0:02:57.2]} 1... a6 {[%clk 0:02:49.3]} 2. d4 {[%clk 0:02:54.1]}
2... e6 {[%clk 0:02:49.2]} 3. Nf3 {[%clk 0:02:44.7]} 3... d5 {[%clk 0:02:49.5]}
4. Nbd2 {[%clk 0:02:43.2]} 4... c5 {[%clk 0:02:49.5]} 5. exd5 {[%clk 0:02:41.8]}
5... exd5 {[%clk 0:02:49.1]} 6. Bd3 {[%clk 0:02:38.4]} 6... c4 {[%clk
0:02:48.5]} 7. Be2 {[%clk 0:02:38.5]} 7... b5 {[%clk 0:02:48.8]} 8. b3 {[%clk
0:02:27.1]} 8... Nc6 {[%clk 0:02:46.5]} 9. a4 {[%clk 0:02:24.2]} 9... Rb8 {[%clk
0:02:42]} 10. Nf1 {[%clk 0:02:11.7]} 10... Bd6 {[%clk 0:02:31.8]} 11. Ne3 {[%clk
0:02:10.1]} 11... Nge7 {[%clk 0:02:31.4]} 12. O-O {[%clk 0:02:07.3]} 12... O-O
{[%clk 0:02:31.3]} 13. axb5 {[%clk 0:01:58]} 13... axb5 {[%clk 0:02:30.4]} 14.
bxc4 {[%clk 0:01:58.2]} 14... dxc4 {[%clk 0:02:26.8]} 15. c3 {[%clk 0:01:51.3]}
15... Ng6 {[%clk 0:02:26.5]} 16. Ba3 {[%clk 0:01:39]} 16... Nf4 {[%clk
0:02:21.2]} 17. Bxd6 {[%clk 0:01:37]} 17... Qxd6 {[%clk 0:02:22.1]} 18. Re1
{[%clk 0:01:30.8]} 18... Ne7 {[%clk 0:02:18]} 19. Bf1 {[%clk 0:00:54.6]} 19...
Bb7 {[%clk 0:02:17.8]} 20. g3 {[%clk 0:00:33.1]} 20... Nfd5 {[%clk 0:02:16.1]}
21. Nxd5 {[%clk 0:00:32.1]} 21... Nxd5 {[%clk 0:02:16.8]} 22. Qd2 {[%clk
0:00:26.5]} 22... b4 {[%clk 0:02:16.7]} 23. cxb4 {[%clk 0:00:22.8]} 23... c3
{[%clk 0:02:17]} 24. Qe2 {[%clk 0:00:13.5]} 24... Nxb4 {[%clk 0:02:16.3]} 25.
Bg2 {[%clk 0:00:13.1]} 25... Bxf3 {[%clk 0:02:14.1]} 26. Qxf3 {[%clk 0:00:12.2]}
26... Qxd4 {[%clk 0:02:07.3]} 27. Red1 {[%clk 0:00:12.4]} 27... Qc5 {[%clk
0:02:07]} 28. Rac1 {[%clk 0:00:11.9]} 28... c2 {[%clk 0:02:06.5]} 29. Re1 {[%clk
0:00:10.4]} 29... Rfd8 {[%clk 0:02:04.6]} 30. Bf1 {[%clk 0:00:10.5]} 30... Na2
{[%clk 0:01:55.6]} 31. Qe4 {[%clk 0:00:06.4]} 31... Nxc1 {[%clk 0:01:54.6]} 32.
Rxc1 {[%clk 0:00:07.3]} 32... Rd2 {[%clk 0:01:53.9]} 33. Qf4 {[%clk 0:00:05.4]}
33... Rbd8 {[%clk 0:01:53.1]} 34. Kg2 {[%clk 0:00:04.4]} 34... g5 {[%clk
0:01:42.7]} 35. Qf3 {[%clk 0:00:03.9]} 35... R8d5 {[%clk 0:01:40.8]} 36. Be2
{[%clk 0:00:03.5]} 36... Rf5 {[%clk 0:01:40.2]} 37. Qe3 {[%clk 0:00:02.8]} 37...
Qxe3 {[%clk 0:01:40]} 38. fxe3 {[%clk 0:00:03.7]} 38... Rxe2+ {[%clk 0:01:40.7]}
0-1

[Event "Early-Titled-Tuesday-Blitz-May-07-2024"]
[Site "Chess.com"]
[Date "2024.05.07"]
[Round "1"]
[White "HeroWilczek"]
[Black "AnaKuchava"]
[Result "1-0"]
[WhiteElo "2578"]
[BlackElo "2186"]
[TimeControl "180+1"]
[EndTime "8:05:50 PDT"]
[Termination "HeroWilczek won on time"]

1. Nf3 {[%clk 0:02:59.8]} 1... d5 {[%clk 0:02:29.3]} 2. b3 {[%clk 0:02:59.7]}
2... c5 {[%clk 0:02:29.5]} 3. Bb2 {[%clk 0:02:59.3]} 3... Nc6 {[%clk 0:02:30.4]}
4. c4 {[%clk 0:02:59.3]} 4... e6 {[%clk 0:02:25.8]} 5. e3 {[%clk 0:02:59.2]}
5... Nf6 {[%clk 0:02:18.8]} 6. cxd5 {[%clk 0:02:59.4]} 6... exd5 {[%clk
0:02:18.2]} 7. Bb5 {[%clk 0:02:59.3]} 7... Be7 {[%clk 0:02:16]} 8. O-O {[%clk
0:02:59]} 8... O-O {[%clk 0:02:10.2]} 9. d4 {[%clk 0:02:59]} 9... Bd7 {[%clk
0:01:57.4]} 10. Bxc6 {[%clk 0:02:46.9]} 10... Bxc6 {[%clk 0:01:51.5]} 11. Ne5
{[%clk 0:02:47.4]} 11... Rc8 {[%clk 0:01:46]} 12. Nc3 {[%clk 0:02:43.4]} 12...
a6 {[%clk 0:01:26.2]} 13. Rc1 {[%clk 0:02:42.3]} 13... Re8 {[%clk 0:01:06.7]}
14. h3 {[%clk 0:02:39.6]} 14... h6 {[%clk 0:01:03.7]} 15. Re1 {[%clk 0:02:29]}
15... b5 {[%clk 0:00:59]} 16. Nxc6 {[%clk 0:01:59.2]} 16... Rxc6 {[%clk
0:00:54.1]} 17. dxc5 {[%clk 0:01:59.1]} 17... Bxc5 {[%clk 0:00:52.1]} 18. Qf3
{[%clk 0:01:53.8]} 18... Ne4 {[%clk 0:00:42]} 19. Red1 {[%clk 0:01:40]} 19...
Nxc3 {[%clk 0:00:22.3]} 20. Rxc3 {[%clk 0:01:40.9]} 20... Rc8 {[%clk 0:00:11.1]}
21. Rcd3 {[%clk 0:01:38.2]} 21... Qe7 {[%clk 0:00:09.3]} 22. Rxd5 {[%clk
0:01:35.3]} 22... Red8 {[%clk 0:00:06.1]} 23. Qg4 {[%clk 0:01:26.6]} 23... f6
{[%clk 0:00:01.1]} 24. Rd7 {[%clk 0:01:25.2]} 24... Rxd7 {[%clk 0:00:00.8]} 25.
Rxd7 {[%clk 0:01:26.1]} 25... Qf8 {[%clk 0:00:00.7]} 26. Rxg7+ {[%clk
0:01:21.2]} 26... Qxg7 {[%clk 0:00:00.3]} 27. Qxc8+ {[%clk 0:01:21.5]} 1-0

[Event "Early-Titled-Tuesday-Blitz-May-07-2024"]
[Site "Chess.com"]
[Date "2024.05.07"]
[Round "1"]
[White "jinbojinbo"]
[Black "briesmas"]
[Result "1-0"]
[WhiteElo "2618"]
[BlackElo "2289"]
[TimeControl "180+1"]
[EndTime "8:05:55 PDT"]
[Termination "jinbojinbo won on time"]

1. c4 {[%clk 0:03:00.8]} 1... c5 {[%clk 0:02:55.7]} 2. Nc3 {[%clk 0:02:59.9]}
2... Nc6 {[%clk 0:02:50.2]} 3. Nf3 {[%clk 0:02:59.7]} 3... g6 {[%clk 0:02:48.5]}
4. e3 {[%clk 0:02:57.5]} 4... Bg7 {[%clk 0:02:43.5]} 5. d4 {[%clk 0:02:57.1]}
5... d6 {[%clk 0:02:27.7]} 6. Be2 {[%clk 0:02:54.3]} 6... Nf6 {[%clk 0:02:25.9]}
7. O-O {[%clk 0:02:53.6]} 7... O-O {[%clk 0:02:25.3]} 8. b3 {[%clk 0:02:48.8]}
8... cxd4 {[%clk 0:02:09.9]} 9. exd4 {[%clk 0:02:47.9]} 9... d5 {[%clk
0:02:01.8]} 10. Bb2 {[%clk 0:02:37.8]} 10... Bf5 {[%clk 0:01:43.9]} 11. Re1
{[%clk 0:02:27.8]} 11... e6 {[%clk 0:01:38.2]} 12. Bf1 {[%clk 0:02:18.8]} 12...
Ne4 {[%clk 0:01:32.6]} 13. c5 {[%clk 0:02:04.5]} 13... Qf6 {[%clk 0:01:17.6]}
14. Nxe4 {[%clk 0:01:44.8]} 14... dxe4 {[%clk 0:00:59.3]} 15. Ne5 {[%clk
0:01:44.4]} 15... Nxe5 {[%clk 0:00:49.3]} 16. dxe5 {[%clk 0:01:43.3]} 16... Qg5
{[%clk 0:00:46.4]} 17. Qc1 {[%clk 0:01:39]} 17... Qh4 {[%clk 0:00:35.2]} 18. g3
{[%clk 0:01:31.8]} 18... Qe7 {[%clk 0:00:30]} 19. Qe3 {[%clk 0:01:30.6]} 19...
Rfd8 {[%clk 0:00:24.9]} 20. Rad1 {[%clk 0:01:27.2]} 20... Qc7 {[%clk 0:00:21]}
21. Rd6 {[%clk 0:01:26]} 21... Bf8 {[%clk 0:00:17.8]} 22. Red1 {[%clk
0:01:24.1]} 22... Bxd6 {[%clk 0:00:17.3]} 23. exd6 {[%clk 0:01:24.7]} 23... Qc6
{[%clk 0:00:15.8]} 24. Qd4 {[%clk 0:01:24.9]} 24... e5 {[%clk 0:00:09.4]} 25.
Qxe5 {[%clk 0:01:25.1]} 25... f6 {[%clk 0:00:06.3]} 26. Qxf6 {[%clk 0:01:25.3]}
26... Qe8 {[%clk 0:00:01.7]} 27. Bc4+ {[%clk 0:01:25.2]} 1-0

[Event "Early-Titled-Tuesday-Blitz-May-07-2024"]
[Site "Chess.com"]
[Date "2024.05.07"]
[Round "1"]
[White "BM223344"]
[Black "giovannibrandao7"]
[Result "1-0"]
[WhiteElo "2619"]
[BlackElo "2303"]
[TimeControl "180+1"]
[EndTime "8:06:01 PDT"]
[Termination "BM223344 won on time"]

1. d4 {[%clk 0:03:00.9]} 1... Nf6 {[%clk 0:03:00.3]} 2. c4 {[%clk 0:03:00.9]}
2... g6 {[%clk 0:03:00.6]} 3. Nc3 {[%clk 0:03:00.7]} 3... d5 {[%clk 0:03:01.1]}
4. Nf3 {[%clk 0:02:59.6]} 4... Bg7 {[%clk 0:03:00.9]} 5. cxd5 {[%clk 0:02:58.3]}
5... Nxd5 {[%clk 0:03:00.6]} 6. e4 {[%clk 0:02:59]} 6... Nxc3 {[%clk 0:03:01.2]}
7. bxc3 {[%clk 0:02:59.9]} 7... c5 {[%clk 0:03:01]} 8. Be3 {[%clk 0:02:58.9]}
8... Nc6 {[%clk 0:03:01.3]} 9. Be2 {[%clk 0:02:59.1]} 9... O-O {[%clk
0:02:56.9]} 10. O-O {[%clk 0:02:59.1]} 10... cxd4 {[%clk 0:02:54.9]} 11. cxd4
{[%clk 0:02:59.3]} 11... b6 {[%clk 0:02:54.9]} 12. Rc1 {[%clk 0:02:59.4]} 12...
Bb7 {[%clk 0:02:55.4]} 13. d5 {[%clk 0:02:57.8]} 13... Ne5 {[%clk 0:02:32.8]}
14. Nxe5 {[%clk 0:02:56.3]} 14... Bxe5 {[%clk 0:02:33.7]} 15. f4 {[%clk
0:02:56.6]} 15... Bg7 {[%clk 0:02:33.7]} 16. Bf3 {[%clk 0:02:56.8]} 16... Qd7
{[%clk 0:02:25]} 17. Qb3 {[%clk 0:02:50.6]} 17... Rfc8 {[%clk 0:02:03.3]} 18. e5
{[%clk 0:02:44.6]} 18... Rxc1 {[%clk 0:01:43.7]} 19. Rxc1 {[%clk 0:02:42.9]}
19... Rc8 {[%clk 0:01:41.4]} 20. Rxc8+ {[%clk 0:02:38]} 20... Qxc8 {[%clk
0:01:39.7]} 21. a4 {[%clk 0:02:38.4]} 21... Bf8 {[%clk 0:01:03.7]} 22. Kf2
{[%clk 0:02:36.1]} 22... Qd7 {[%clk 0:00:51.1]} 23. e6 {[%clk 0:02:15.9]} 23...
fxe6 {[%clk 0:00:48]} 24. dxe6 {[%clk 0:02:15.8]} 24... Qc8 {[%clk 0:00:43.3]}
25. Bxb7 {[%clk 0:02:13.2]} 25... Qxb7 {[%clk 0:00:43.3]} 26. Qd3 {[%clk
0:02:13.1]} 26... Qc6 {[%clk 0:00:29.9]} 27. f5 {[%clk 0:02:06.7]} 27... Qxa4
{[%clk 0:00:21.6]} 28. g3 {[%clk 0:01:26.9]} 28... Qa2+ {[%clk 0:00:10.5]} 29.
Kg1 {[%clk 0:01:25.7]} 29... a5 {[%clk 0:00:08.4]} 30. Qe4 {[%clk 0:01:17.8]}
30... a4 {[%clk 0:00:04.9]} 31. fxg6 {[%clk 0:01:17.7]} 31... hxg6 {[%clk
0:00:01.6]} 32. Qxg6+ {[%clk 0:01:16.7]} 1-0

[Event "Early-Titled-Tuesday-Blitz-May-07-2024"]
[Site "Chess.com"]
[Date "2024.05.07"]
[Round "1"]
[White "Masterisback04"]
[Black "toninhojit"]
[Result "0-1"]
[WhiteElo "2015"]
[BlackElo "2555"]
[TimeControl "180+1"]
[EndTime "8:06:07 PDT"]
[Termination "toninhojit won on time"]

1. e4 {[%clk 0:02:46.6]} 1... e5 {[%clk 0:02:52.8]} 2. Nf3 {[%clk 0:02:41.6]}
2... Nc6 {[%clk 0:02:53]} 3. Bc4 {[%clk 0:02:41]} 3... Nf6 {[%clk 0:02:53.1]} 4.
d3 {[%clk 0:02:40.3]} 4... h6 {[%clk 0:02:51.3]} 5. Nc3 {[%clk 0:02:28.1]} 5...
d6 {[%clk 0:02:49.3]} 6. Nd5 {[%clk 0:02:26.4]} 6... Nxd5 {[%clk 0:02:43.1]} 7.
Bxd5 {[%clk 0:02:26.4]} 7... Be7 {[%clk 0:02:40.8]} 8. a3 {[%clk 0:02:22.7]}
8... O-O {[%clk 0:02:40.9]} 9. h3 {[%clk 0:02:08]} 9... Kh8 {[%clk 0:02:40.2]}
10. g4 {[%clk 0:02:07.4]} 10... Be6 {[%clk 0:02:34.8]} 11. g5 {[%clk 0:01:41.8]}
11... hxg5 {[%clk 0:02:25.9]} 12. Nxg5 {[%clk 0:01:17.2]} 12... Bxg5 {[%clk
0:02:19.2]} 13. Qh5+ {[%clk 0:01:16.6]} 13... Kg8 {[%clk 0:02:15.1]} 14. Bxg5
{[%clk 0:01:16.2]} 14... Ne7 {[%clk 0:01:33.1]} 15. Rg1 {[%clk 0:00:31.7]} 15...
Bxd5 {[%clk 0:01:27.2]} 16. Bf6 {[%clk 0:00:18.1]} 16... Ng6 {[%clk 0:01:25.9]}
17. Bxd8 {[%clk 0:00:17.9]} 17... Raxd8 {[%clk 0:01:21.1]} 18. exd5 {[%clk
0:00:16.1]} 18... Nf4 {[%clk 0:01:18.3]} 19. Qf5 {[%clk 0:00:14.2]} 19... g6
{[%clk 0:01:09.6]} 20. Qg4 {[%clk 0:00:09.4]} 20... f5 {[%clk 0:01:02.7]} 21.
Qg5 {[%clk 0:00:08.1]} 21... Kf7 {[%clk 0:01:03.4]} 22. Rg3 {[%clk 0:00:06.4]}
22... Rh8 {[%clk 0:01:03.4]} 23. Rg1 {[%clk 0:00:02.8]} 23... Rde8 {[%clk
0:01:01.2]} 24. O-O-O {[%clk 0:00:02.5]} 24... Rh5 {[%clk 0:00:59.8]} 0-1

[Event "Early-Titled-Tuesday-Blitz-May-07-2024"]
[Site "Chess.com"]
[Date "2024.05.07"]
[Round "1"]
[White "Hasangatin_Ramil"]
[Black "Kostukov_Alex"]
[Result "1-0"]
[WhiteElo "2662"]
[BlackElo "2369"]
[TimeControl "180+1"]
[EndTime "8:06:09 PDT"]
[Termination "Hasangatin_Ramil won by resignation"]

1. d4 {[%clk 0:02:59.6]} 1... g6 {[%clk 0:02:58.7]} 2. e4 {[%clk 0:02:58.7]}
2... c5 {[%clk 0:02:55.7]} 3. d5 {[%clk 0:02:57.9]} 3... Bg7 {[%clk 0:02:54.9]}
4. Nf3 {[%clk 0:02:58.2]} 4... d6 {[%clk 0:02:55.4]} 5. Nc3 {[%clk 0:02:57.5]}
5... Nf6 {[%clk 0:02:55.3]} 6. Bb5+ {[%clk 0:02:57.4]} 6... Bd7 {[%clk
0:02:49.8]} 7. a4 {[%clk 0:02:56.9]} 7... O-O {[%clk 0:02:49.2]} 8. h3 {[%clk
0:02:50.8]} 8... Na6 {[%clk 0:02:45.9]} 9. O-O {[%clk 0:02:49]} 9... Nc7 {[%clk
0:02:45]} 10. Bxd7 {[%clk 0:02:44]} 10... Qxd7 {[%clk 0:02:44.6]} 11. Re1 {[%clk
0:02:39.9]} 11... e5 {[%clk 0:02:16.4]} 12. dxe6 {[%clk 0:02:32.4]} 12... fxe6
{[%clk 0:01:58.7]} 13. e5 {[%clk 0:02:31.7]} 13... dxe5 {[%clk 0:01:57.8]} 14.
Nxe5 {[%clk 0:02:23.5]} 14... Qxd1 {[%clk 0:01:52.2]} 15. Nxd1 {[%clk
0:02:23.3]} 15... Rad8 {[%clk 0:01:45.7]} 16. Bg5 {[%clk 0:02:06.8]} 16... Rd5
{[%clk 0:01:24.2]} 17. Nc3 {[%clk 0:01:50.7]} 17... Rxe5 {[%clk 0:01:21.3]} 18.
Rxe5 {[%clk 0:01:49]} 18... Nd7 {[%clk 0:01:21.3]} 19. Re2 {[%clk 0:01:43.2]}
19... Rf7 {[%clk 0:01:03.7]} 20. Rd1 {[%clk 0:01:41.2]} 20... h6 {[%clk
0:01:01.6]} 21. Bc1 {[%clk 0:01:38.4]} 21... g5 {[%clk 0:00:52.8]} 22. Ne4
{[%clk 0:01:37.6]} 22... b6 {[%clk 0:00:50]} 23. c3 {[%clk 0:01:35.6]} 23... Ne5
{[%clk 0:00:45.2]} 24. Ng3 {[%clk 0:01:18.6]} 24... Bh8 {[%clk 0:00:26.4]} 25.
Rd8+ {[%clk 0:01:17]} 25... Rf8 {[%clk 0:00:22.8]} 26. Rxf8+ {[%clk 0:01:15.5]}
26... Kxf8 {[%clk 0:00:23.7]} 27. f4 {[%clk 0:01:10.8]} 27... Nf7 {[%clk
0:00:21.6]} 28. Ne4 {[%clk 0:01:09.1]} 28... gxf4 {[%clk 0:00:19.3]} 29. Bxf4
{[%clk 0:01:08.4]} 29... Nd5 {[%clk 0:00:19.3]} 30. Bb8 {[%clk 0:01:07.8]} 30...
a6 {[%clk 0:00:19]} 31. a5 {[%clk 0:01:05.8]} 31... bxa5 {[%clk 0:00:14.9]} 32.
Nxc5 {[%clk 0:01:06]} 1-0

[Event "Early-Titled-Tuesday-Blitz-May-07-2024"]
[Site "Chess.com"]
[Date "2024.05.07"]
[Round "1"]
[White "vugarrasulov"]
[Black "Kostya0705"]
[Result "1-0"]
[WhiteElo "2963"]
[BlackElo "2525"]
[TimeControl "180+1"]
[EndTime "8:06:14 PDT"]
[Termination "vugarrasulov won by checkmate"]

1. d4 {[%clk 0:03:00.9]} 1... Nf6 {[%clk 0:02:59.2]} 2. c4 {[%clk 0:03:00.4]}
2... e6 {[%clk 0:02:58.4]} 3. Nc3 {[%clk 0:03:00.2]} 3... Bb4 {[%clk 0:02:57.9]}
4. Nf3 {[%clk 0:03:00.1]} 4... c5 {[%clk 0:02:55.8]} 5. Bg5 {[%clk 0:02:51.7]}
5... h6 {[%clk 0:02:47]} 6. Bh4 {[%clk 0:02:48.4]} 6... O-O {[%clk 0:02:45.1]}
7. e3 {[%clk 0:02:44.8]} 7... b6 {[%clk 0:02:32.5]} 8. Be2 {[%clk 0:02:41.8]}
8... Bb7 {[%clk 0:02:32.4]} 9. O-O {[%clk 0:02:42.2]} 9... Bxc3 {[%clk
0:02:31.9]} 10. bxc3 {[%clk 0:02:43.1]} 10... d6 {[%clk 0:02:26.4]} 11. Nd2
{[%clk 0:02:40.8]} 11... Nbd7 {[%clk 0:02:23.9]} 12. a4 {[%clk 0:02:40.1]} 12...
Qc7 {[%clk 0:02:18.2]} 13. a5 {[%clk 0:02:37.8]} 13... bxa5 {[%clk 0:02:01.2]}
14. Qa4 {[%clk 0:02:35.1]} 14... Ne4 {[%clk 0:01:49.4]} 15. Nxe4 {[%clk
0:02:32.7]} 15... Bxe4 {[%clk 0:01:50.3]} 16. Qxa5 {[%clk 0:02:32]} 16... Nb6
{[%clk 0:01:44.3]} 17. Bg3 {[%clk 0:02:24.3]} 17... Qc6 {[%clk 0:01:44]} 18. f3
{[%clk 0:02:23.3]} 18... Bg6 {[%clk 0:01:41.2]} 19. Qa6 {[%clk 0:02:17.5]} 19...
Rfc8 {[%clk 0:01:38.8]} 20. Rfc1 {[%clk 0:02:11.9]} 20... Rc7 {[%clk 0:01:23.5]}
21. Ra5 {[%clk 0:02:05.8]} 21... Nd7 {[%clk 0:00:46.5]} 22. Qxc6 {[%clk
0:02:03.5]} 22... Rxc6 {[%clk 0:00:47.4]} 23. Rca1 {[%clk 0:01:59.2]} 23... a6
{[%clk 0:00:45.5]} 24. Kf2 {[%clk 0:01:57.5]} 24... Kf8 {[%clk 0:00:45.4]} 25.
e4 {[%clk 0:01:53.2]} 25... Rb6 {[%clk 0:00:44.7]} 26. h4 {[%clk 0:01:48.2]}
26... f5 {[%clk 0:00:43.3]} 27. e5 {[%clk 0:01:41.2]} 27... dxe5 {[%clk
0:00:38.4]} 28. Bxe5 {[%clk 0:01:40.6]} 28... Nxe5 {[%clk 0:00:33.3]} 29. dxe5
{[%clk 0:01:41.5]} 29... Rc6 {[%clk 0:00:33.3]} 30. f4 {[%clk 0:01:40.7]} 30...
Ra7 {[%clk 0:00:20.9]} 31. Bf3 {[%clk 0:01:40.6]} 31... Rb6 {[%clk 0:00:21.4]}
32. Rxc5 {[%clk 0:01:40.2]} 32... Ke7 {[%clk 0:00:21.9]} 33. Rc8 {[%clk
0:01:38.8]} 33... Be8 {[%clk 0:00:22]} 34. c5 {[%clk 0:01:38.8]} 34... Rb3
{[%clk 0:00:20.7]} 35. c6 {[%clk 0:01:36.3]} 35... Rxc3 {[%clk 0:00:20.7]} 36.
Rb1 {[%clk 0:01:36.3]} 36... Bxc6 {[%clk 0:00:01.9]} 37. Bxc6 {[%clk 0:01:34.1]}
37... a5 {[%clk 0:00:01.3]} 38. Rbb8 {[%clk 0:01:29.3]} 38... a4 {[%clk
0:00:00.7]} 39. h5 {[%clk 0:01:29.9]} 39... a3 {[%clk 0:00:00.7]} 40. Re8+
{[%clk 0:01:30.4]} 40... Kf7 {[%clk 0:00:00.7]} 41. Rf8+ {[%clk 0:01:31.3]}
41... Ke7 {[%clk 0:00:00.8]} 42. Rbe8# {[%clk 0:01:32.2]} 1-0

[Event "Early-Titled-Tuesday-Blitz-May-07-2024"]
[Site "Chess.com"]
[Date "2024.05.07"]
[Round "1"]
[White "GMAneta"]
[Black "Kacparov"]
[Result "0-1"]
[WhiteElo "2506"]
[BlackElo "2916"]
[TimeControl "180+1"]
[EndTime "8:06:16 PDT"]
[Termination "Kacparov won by resignation"]

1. d4 {[%clk 0:03:00.8]} 1... Nf6 {[%clk 0:02:58.4]} 2. Nf3 {[%clk 0:02:56.5]}
2... e6 {[%clk 0:02:58.5]} 3. c4 {[%clk 0:02:56.3]} 3... b6 {[%clk 0:02:57.7]}
4. Nc3 {[%clk 0:02:53.8]} 4... Bb4 {[%clk 0:02:54]} 5. Qb3 {[%clk 0:02:51]} 5...
Bxc3+ {[%clk 0:02:50.9]} 6. Qxc3 {[%clk 0:02:50.9]} 6... Bb7 {[%clk 0:02:51.5]}
7. Bf4 {[%clk 0:02:50.8]} 7... O-O {[%clk 0:02:51.1]} 8. e3 {[%clk 0:02:51]}
8... d6 {[%clk 0:02:51.4]} 9. Be2 {[%clk 0:02:36.3]} 9... Nbd7 {[%clk
0:02:51.4]} 10. O-O {[%clk 0:02:35.6]} 10... Qe7 {[%clk 0:02:51.7]} 11. b4
{[%clk 0:02:35]} 11... Rfe8 {[%clk 0:02:45.8]} 12. Rfc1 {[%clk 0:02:33.2]} 12...
e5 {[%clk 0:02:45.3]} 13. Bg3 {[%clk 0:02:21.8]} 13... Ne4 {[%clk 0:02:44.4]}
14. Qc2 {[%clk 0:02:16]} 14... Nxg3 {[%clk 0:02:42.6]} 15. hxg3 {[%clk
0:02:15.6]} 15... exd4 {[%clk 0:02:42.1]} 16. Nxd4 {[%clk 0:02:15]} 16... g6
{[%clk 0:02:33.4]} 17. a3 {[%clk 0:02:08.6]} 17... a6 {[%clk 0:02:14.7]} 18. Bf3
{[%clk 0:02:00.6]} 18... Bxf3 {[%clk 0:02:14.1]} 19. gxf3 {[%clk 0:02:01.5]}
19... Ne5 {[%clk 0:02:07.4]} 20. Qe4 {[%clk 0:01:57.3]} 20... Qd7 {[%clk
0:02:02.4]} 21. c5 {[%clk 0:01:44.8]} 21... bxc5 {[%clk 0:01:51.2]} 22. bxc5
{[%clk 0:01:45.7]} 22... d5 {[%clk 0:01:51.1]} 23. Qc2 {[%clk 0:01:33.5]} 23...
Rab8 {[%clk 0:01:50.1]} 24. c6 {[%clk 0:01:28.9]} 24... Qd6 {[%clk 0:01:49.2]}
25. Kg2 {[%clk 0:01:27.6]} 25... Rb6 {[%clk 0:01:46]} 26. Qc3 {[%clk 0:01:20.6]}
26... Reb8 {[%clk 0:01:42.3]} 27. f4 {[%clk 0:01:09.2]} 27... Ng4 {[%clk
0:01:37.1]} 28. a4 {[%clk 0:01:00.7]} 28... Nf6 {[%clk 0:01:35.6]} 29. Rc2
{[%clk 0:00:57.4]} 29... Ne4 {[%clk 0:01:34.9]} 30. Qd3 {[%clk 0:00:34.9]} 30...
Rb2 {[%clk 0:01:22.7]} 31. Qxa6 {[%clk 0:00:30.7]} 31... Rxc2 {[%clk 0:01:21.2]}
32. Nxc2 {[%clk 0:00:31.6]} 32... Rb2 {[%clk 0:01:18.4]} 33. Rc1 {[%clk
0:00:31.2]} 33... Qc5 {[%clk 0:01:13.5]} 34. a5 {[%clk 0:00:27.3]} 34... Rxc2
{[%clk 0:01:08.5]} 35. Rxc2 {[%clk 0:00:26]} 35... Qxc2 {[%clk 0:01:08.6]} 0-1

[Event "Early-Titled-Tuesday-Blitz-May-07-2024"]
[Site "Chess.com"]
[Date "2024.05.07"]
[Round "1"]
[White "Zampronha1971"]
[Black "WhiteKnight2612"]
[Result "0-1"]
[WhiteElo "2465"]
[BlackElo "2823"]
[TimeControl "180+1"]
[EndTime "8:06:20 PDT"]
[Termination "WhiteKnight2612 won on time"]

1. e4 {[%clk 0:03:00.9]} 1... c5 {[%clk 0:02:59.2]} 2. Nf3 {[%clk 0:02:59.9]}
2... Nc6 {[%clk 0:02:57.5]} 3. d4 {[%clk 0:02:59.7]} 3... cxd4 {[%clk 0:02:55]}
4. Nxd4 {[%clk 0:03:00.6]} 4... e5 {[%clk 0:02:49.9]} 5. Nb5 {[%clk 0:02:59.4]}
5... Nf6 {[%clk 0:02:47.9]} 6. N1c3 {[%clk 0:02:33.3]} 6... Qa5 {[%clk
0:02:22.4]} 7. Bd2 {[%clk 0:02:12.9]} 7... Qb6 {[%clk 0:02:21]} 8. Be3 {[%clk
0:02:11]} 8... Qa5 {[%clk 0:02:21.1]} 9. Bd2 {[%clk 0:02:11.2]} 9... Qd8 {[%clk
0:02:20.9]} 10. Bg5 {[%clk 0:02:07.8]} 10... Bc5 {[%clk 0:02:07.6]} 11. Nd6+
{[%clk 0:01:22]} 11... Kf8 {[%clk 0:02:01.3]} 12. Bc4 {[%clk 0:01:18.6]} 12...
Qb6 {[%clk 0:01:34.4]} 13. O-O {[%clk 0:00:57.9]} 13... Na5 {[%clk 0:01:27.5]}
14. Nxf7 {[%clk 0:00:22.9]} 14... Nxc4 {[%clk 0:01:26.5]} 15. Nxh8 {[%clk
0:00:21.7]} 15... Bd4 {[%clk 0:01:16.9]} 16. Nd5 {[%clk 0:00:08]} 16... Qe6
{[%clk 0:00:46.1]} 17. Bxf6 {[%clk 0:00:05.6]} 17... gxf6 {[%clk 0:00:45.3]} 18.
Nc7 {[%clk 0:00:05.7]} 18... Qg8 {[%clk 0:00:43.9]} 19. Nxa8 {[%clk 0:00:04.3]}
19... d6 {[%clk 0:00:41.6]} 20. c3 {[%clk 0:00:03.8]} 20... Bg4 {[%clk
0:00:38.6]} 0-1